fUST/lending_fUST_20250717
["ID","MTS","AMOUNT","RATE_DAILY","PERIOD"]
[372678642,1752739842488,-559.23,0.00019368,2]
[372678644,1752739842500,-1841.05,0.00019368,2]
[372678646,1752739842510,-460.0,0.00019368,2]
[372678648,1752739842520,-1251.93,0.00019368,2]
[372678650,1752739842529,-500.0,0.00019373,2]
[372678652,1752739842539,-1413.54,0.00019382,2]
[372678653,1752739842549,-1000.0,0.00019406,2]
[372678656,1752739842558,-1000.0,0.00019406,2]
[372678658,1752739842569,-1000.0,0.00019406,2]
[372678659,1752739842579,-11421.21019069,0.00019452,2]
[372678662,1752739842590,-1339.52,0.000195,2]
[372678663,1752739842599,-1157.3512308,0.00019538,2]
[372678665,1752739842609,-1413.54,0.00019623,2]
[372678668,1752739842618,-3137.16,0.00019636,2]
[372678670,1752739842629,-2352.6,0.00019636,2]
[372678672,1752739842639,-514.73,0.00019636,2]
[372678674,1752739842649,-1205.92,0.00019636,2]
[372678676,1752739842658,-1584.7,0.00019636,2]
[372678679,1752739842668,-460.0,0.00019636,2]
[372678681,1752739842677,-460.0,0.00019636,2]
[372678684,1752739842687,-1328.09,0.00019636,2]
[372678687,1752739842696,-693.06,0.00019636,2]
[372678690,1752739842706,-460.0,0.00019637,2]
[372678693,1752739842717,-460.0,0.00019637,2]
[372678695,1752739842727,-460.0,0.00019637,2]
[372678697,1752739842737,-460.0,0.00019637,2]
[372678699,1752739842749,-460.0,0.00019637,2]
[372678701,1752739842758,-460.0,0.00019637,2]
[372678703,1752739842768,-460.0,0.00019637,2]
[372678705,1752739842778,-460.0,0.00019637,2]
[372678707,1752739842788,-460.0,0.00019637,2]
[372678709,1752739842798,-566.7,0.00019637,2]
[372678712,1752739842807,-460.0,0.00019638,2]
[372678715,1752739842817,-2209.86,0.00019638,2]
[372678718,1752739842827,-460.0,0.00019638,2]
[372678721,1752739842837,-765.54,0.00019638,2]
[372678723,1752739842846,-765.56,0.00019638,2]
[372678725,1752739842856,-460.0,0.00019638,2]
[372678727,1752739842867,-460.0,0.00019638,2]
[372678729,1752739842877,-460.0,0.00019638,2]
[372678730,1752739842888,-460.0,0.00019638,2]
[372678732,1752739842897,-460.0,0.00019638,2]
[372678734,1752739842907,-460.0,0.00019638,2]
[372678737,1752739842917,-460.0,0.00019638,2]
[372678738,1752739842926,-617.34,0.00019638,2]
[372678741,1752739842937,-460.0,0.00019638,2]
[372678743,1752739842949,-460.0,0.00019638,2]
[372678745,1752739842959,-484.08,0.00019638,2]
[372678747,1752739842969,-420.0,0.00019639,2]
[372678749,1752739842979,-1413.54,0.0001964,2]
[372678750,1752739842989,-2467.07,0.00019642,2]
[372678753,1752739843000,-614.0,0.00019642,2]
[372678755,1752739843010,-460.0,0.00019642,2]
[372678757,1752739843019,-1119.23,0.00019642,2]
[372678759,1752739843028,-1160.51,0.00019642,2]
[372678761,1752739843039,-559.23,0.00019642,2]
[372678762,1752739843048,-1841.05,0.00019642,2]
[372678764,1752739843058,-460.0,0.00019642,2]
[372678767,1752739843067,-1251.93,0.00019642,2]
[372678769,1752739843077,-1413.54,0.00019699,2]
[372678771,1752739843087,-17667.63082844,0.000197,2]
[372678773,1752739843096,-151.0,0.00019726,2]
[372678774,1752739843106,-672.0,0.00019726,2]
[372678777,1752739843116,-151.0,0.00019726,2]
[372678778,1752739843126,-151.28927516,0.00019726,2]
[372678781,1752739843135,-618.0,0.00019726,2]
[372678782,1752739843146,-198.0,0.00019726,2]
[372678784,1752739843156,-151.0,0.00019726,2]
[372678786,1752739843165,-151.0,0.00019726,2]
[372678789,1752739843175,-11421.21019069,0.00019728,2]
[372678791,1752739843185,-1680.0,0.00019735,2]
[372678792,1752739843194,-1413.54,0.00019772,2]
[372678795,1752739843204,-17369.74617564,0.00019789,2]
[372678797,1752739843214,-179.9820018,0.00019797,2]
[372678799,1752739843223,-1413.54,0.00019799,2]
[372678801,1752739843232,-1413.54,0.00019799,2]
[372678803,1752739843242,-1413.54,0.00019799,2]
[372678805,1752739843251,-1413.54,0.00019799,2]
[372678807,1752739843260,-1413.54,0.00019799,2]
[372678809,1752739843270,-1413.73,0.00019799,2]
[372678811,1752739843279,-373884.17108085,0.000198,2]
[372678813,1752739843289,-7825.9889641,0.000198,2]
[372678815,1752739843299,-151.0,0.000198,2]
[372678816,1752739843309,-2155.0,0.00019822,2]
[372678819,1752739843319,-1025.15971395,0.0001986,2]
[372678821,1752739843329,-151.0,0.000199,2]
[372678823,1752739843339,-3137.16,0.0001991,2]
[372678826,1752739843349,-2352.6,0.0001991,2]
[372678829,1752739843359,-514.73,0.0001991,2]
[372678831,1752739843368,-1205.92,0.0001991,2]
[372678833,1752739843377,-1584.7,0.0001991,2]
[372678835,1752739843387,-325.38468271,0.0001991,2]
[372678837,1752739843397,-460.0,0.0001991,2]
[372678839,1752739843407,-1328.09,0.0001991,2]
[372678841,1752739843416,-693.06,0.0001991,2]
[372678843,1752739843426,-460.0,0.00019911,2]
[372678845,1752739843436,-419.81699781,0.00019911,2]
[372678847,1752739843446,-460.0,0.00019911,2]
[372678849,1752739843455,-460.0,0.00019911,2]
[372678851,1752739843465,-460.0,0.00019911,2]
[372678854,1752739843474,-460.0,0.00019911,2]
[372678856,1752739843484,-460.0,0.00019911,2]
[372678858,1752739843494,-566.7,0.00019911,2]
[372678865,1752739843550,-460.0,0.00019912,2]
[372678867,1752739843561,-2209.86,0.00019912,2]
[372678869,1752739843573,-460.0,0.00019912,2]
[372678871,1752739843583,-765.54,0.00019912,2]
[372678874,1752739843594,-765.56,0.00019912,2]
[372678876,1752739843604,-460.0,0.00019912,2]
[372678878,1752739843614,-460.0,0.00019912,2]
[372678880,1752739843623,-460.0,0.00019912,2]
[372678882,1752739843632,-460.0,0.00019912,2]
[372678884,1752739843641,-460.0,0.00019912,2]
[372678886,1752739843651,-505.98202562,0.00019912,2]
[372678888,1752739843660,-460.0,0.00019912,2]
[372678890,1752739843670,-617.34,0.00019912,2]
[372678892,1752739843680,-460.0,0.00019912,2]
[372678894,1752739843689,-460.0,0.00019912,2]
[372678896,1752739843699,-484.08,0.00019912,2]
[372678898,1752739843708,-2467.07,0.00019916,2]
[372678900,1752739843718,-614.0,0.00019916,2]
[372678901,1752739843727,-460.0,0.00019916,2]
[372678904,1752739843744,-1119.23,0.00019916,2]
[372678905,1752739843754,-1160.51,0.00019916,2]
[372678907,1752739843763,-559.23,0.00019916,2]
[372678909,1752739843773,-1841.05,0.00019916,2]
[372678911,1752739843783,-460.0,0.00019916,2]
[372678914,1752739843793,-1251.93,0.00019916,2]
[372678916,1752739843802,-160.0,0.00019918,2]
[372678917,1752739843812,-1000.0,0.00019921,2]
[372678919,1752739843821,-968.0,0.00019921,2]
[372678921,1752739843832,-407.0,0.00019922,2]
[372678923,1752739843841,-414.376,0.00019922,2]
[372678925,1752739843851,-1320.15973591,0.00019954,2]
[372678927,1752739843861,-1500.0,0.00019954,2]
[372678929,1752739843873,-1500.0,0.00019954,2]
[372678931,1752739843883,-1000.74567423,0.0001996,2]
[372678933,1752739843892,-168.0,0.00019967,2]
[372678935,1752739843902,-500.0,0.00019973,2]
[372678937,1752739843913,-501.04320037,0.00019973,2]
[372678939,1752739843923,-500.0,0.00019973,2]
[372678942,1752739843933,-503.52444387,0.00019973,2]
[372678944,1752739843943,-500.0,0.00019973,2]
[372678946,1752739843955,-500.0,0.00019973,2]
[372678948,1752739843966,-571.16357736,0.00019973,2]
[372678950,1752739843976,-182.91924372,0.00019973,2]
[372678952,1752739843985,-500.0,0.00019973,2]
[372678954,1752739843996,-500.0,0.00019973,2]
[372678956,1752739844006,-347.54868282,0.00019973,2]
[372678958,1752739844016,-500.193092,0.00019973,2]
[372678960,1752739844025,-500.0,0.00019973,2]
[372678961,1752739844034,-500.0,0.00019973,2]
[372678964,1752739844044,-158.04118509,0.00019973,2]
[372678966,1752739844053,-500.0,0.00019973,2]
[372678967,1752739844063,-152.10688042,0.00019973,2]
[372678969,1752739844073,-500.0,0.00019973,2]
[372678971,1752739844083,-500.0,0.00019973,2]
[372678974,1752739844092,-158.41884808,0.00019973,2]
[372678976,1752739844102,-158.12741437,0.00019973,2]
[372678977,1752739844112,-500.0,0.00019973,2]
[372678980,1752739844123,-500.0,0.00019973,2]
[372678982,1752739844132,-155.19178196,0.00019973,2]
[372678983,1752739844141,-500.0,0.00019973,2]
[372678986,1752739844151,-500.0,0.00019973,2]
[372678987,1752739844160,-260.14798762,0.00019973,2]
[372678989,1752739844170,-158.1108441,0.00019973,2]
[372678991,1752739844179,-500.0,0.00019973,2]
[372678993,1752739844189,-500.0,0.00019973,2]
[372678996,1752739844199,-160.12959675,0.00019973,2]
[372678998,1752739844208,-500.0,0.00019973,2]
[372679000,1752739844218,-500.0,0.00019973,2]
[372679002,1752739844228,-500.0,0.00019973,2]
[372679004,1752739844237,-158.12713293,0.00019973,2]
[372679006,1752739844249,-160.10287166,0.00019973,2]
[372679008,1752739844258,-158.22056861,0.00019973,2]
[372679009,1752739844268,-500.0,0.00019973,2]
[372679012,1752739844277,-618.5967777,0.00019973,2]
[372679014,1752739844287,-500.0,0.00019973,2]
[372679016,1752739844296,-500.0,0.00019973,2]
[372679017,1752739844305,-500.0,0.00019973,2]
[372679020,1752739844317,-500.0,0.00019973,2]
[372679022,1752739844334,-500.0,0.00019973,2]
[372679024,1752739844344,-500.0,0.00019973,2]
[372679026,1752739844352,-500.0,0.00019973,2]
[372679028,1752739844361,-500.0,0.00019973,2]
[372679030,1752739844370,-500.0,0.00019973,2]
[372679032,1752739844380,-501.08554331,0.00019973,2]
[372679034,1752739844389,-407.11799922,0.00019973,2]
[372679036,1752739844398,-500.0,0.00019973,2]
[372679038,1752739844410,-500.0,0.00019973,2]
[372679040,1752739844420,-500.0,0.00019973,2]
[372679042,1752739844429,-501.47029748,0.00019973,2]
[372679044,1752739844439,-500.0,0.00019973,2]
[372679046,1752739844448,-501.97479051,0.00019973,2]
[372679048,1752739844458,-521.83916639,0.00019973,2]
[372679050,1752739844467,-500.0,0.00019973,2]
[372679052,1752739844476,-500.0,0.00019973,2]
[372679054,1752739844486,-500.0,0.00019973,2]
[372679056,1752739844496,-500.0,0.00019973,2]
[372679058,1752739844506,-500.0,0.00019973,2]
[372679060,1752739844515,-500.0,0.00019973,2]
[372679062,1752739844525,-500.0,0.00019973,2]
[372679064,1752739844534,-500.0,0.00019973,2]
[372679066,1752739844543,-500.0,0.00019973,2]
[372679068,1752739844553,-500.0,0.00019973,2]
[372679070,1752739844562,-500.0,0.00019973,2]
[372679072,1752739844572,-500.0,0.00019973,2]
[372679074,1752739844581,-500.0,0.00019973,2]
[372679076,1752739844591,-500.0,0.00019973,2]
[372679078,1752739844600,-500.0,0.00019973,2]
[372679080,1752739844609,-500.0,0.00019973,2]
[372679082,1752739844619,-500.0,0.00019973,2]
[372679084,1752739844629,-500.0,0.00019973,2]
[372679086,1752739844639,-500.0,0.00019973,2]
[372679088,1752739844650,-500.0,0.00019973,2]
[372679090,1752739844660,-500.0,0.00019973,2]
[372679092,1752739844670,-500.0,0.00019973,2]
[372679094,1752739844680,-66077.60297026,0.00019989,2]
[372679096,1752739844691,-168.0,0.00019999,2]
[372679098,1752739844701,-672.0,0.0002,2]
[372679100,1752739844711,-618.0,0.0002,2]
[372679102,1752739844721,-151.0,0.0002,2]
[372679104,1752739844731,-2000.0,0.0002,15]
[372679106,1752739844740,-11228.00597634,0.0002,2]
[372679108,1752739844750,-8180.24025147,0.0002,2]
[372679110,1752739844759,-3193.05920576,0.0002,2]
[372679112,1752739844769,-3558.56393114,0.0002,20]
[372679114,1752739844779,-362.55465695,0.0002,2]
[372679116,1752739844788,-1305.75247219,0.0002,5]
[372679118,1752739844798,-307.0,0.0002,2]
[372679120,1752739844808,-71490.45387359,0.0002,2]
[372679122,1752739844819,-173.416,0.0002,2]
[372679124,1752739844828,-173.417,0.0002,2]
[372679126,1752739844838,-151.0,0.0002,2]
[372679128,1752739844848,-300.0,0.0002,2]
[372679130,1752739844857,-151.0,0.0002,2]
[372679132,1752739844868,-561.796941,0.0002,2]
[372679134,1752739844879,-561.796941,0.0002,2]
[372679136,1752739844888,-189.144052,0.0002,2]
[372679138,1752739844898,-189.144052,0.0002,2]
[372679140,1752739844907,-274.124406,0.0002,2]
[372679142,1752739844917,-274.124406,0.0002,2]
[372679144,1752739844927,-151.0,0.0002,2]
[372679146,1752739844936,-151.0,0.0002,2]
[372679148,1752739844947,-151.0,0.0002,2]
[372679149,1752739844956,-151.0,0.0002,2]
[372679151,1752739844966,-151.0,0.0002,2]
[372679154,1752739844975,-151.0,0.0002,2]
[372679155,1752739844985,-151.0,0.0002,2]
[372679157,1752739844995,-151.0,0.0002,2]
[372679160,1752739845005,-151.0,0.0002,2]
[372679162,1752739845015,-151.0,0.0002,2]
[372679164,1752739845025,-151.0,0.0002,2]
[372679165,1752739845035,-151.0,0.0002,2]
[372679167,1752739845045,-151.306194,0.0002,2]
[372679170,1752739845054,-11421.21019069,0.00020003,2]
[372679172,1752739845063,-150.0,0.0002012,2]
[372679174,1752739845073,-150.0,0.0002012,2]
[372679176,1752739845083,-150.0,0.0002012,2]
[372679178,1752739845092,-150.0,0.0002012,2]
[372679179,1752739845102,-150.0,0.0002012,2]
[372679182,1752739845111,-150.0,0.0002012,2]
[372679184,1752739845121,-175.982,0.0002012,2]
[372679185,1752739845130,-647.0,0.0002012,2]
[372679188,1752739845140,-1157.3512308,0.00020129,2]
[372679189,1752739845150,-698.0,0.00020174,3]
[372679191,1752739845159,-700.0,0.00020174,3]
[372679193,1752739845168,-3137.16,0.00020184,2]
[372679195,1752739845178,-2352.6,0.00020184,2]
[372679198,1752739845188,-514.73,0.00020184,2]
[372679200,1752739845197,-1205.92,0.00020184,2]
[372679202,1752739845207,-1584.7,0.00020184,2]
[372679203,1752739845216,-460.0,0.00020184,2]
[372679206,1752739845226,-1328.09,0.00020184,2]
[372679208,1752739845236,-693.06,0.00020184,2]
[372679210,1752739845246,-460.0,0.00020185,2]
[372679212,1752739845256,-460.0,0.00020185,2]
[372679214,1752739845266,-460.0,0.00020185,2]
[372679216,1752739845276,-460.0,0.00020185,2]
[372679218,1752739845286,-460.0,0.00020185,2]
[372679220,1752739845295,-460.0,0.00020185,2]
[372679222,1752739845305,-566.7,0.00020185,2]
[372679224,1752739845315,-460.0,0.00020186,2]
[372679226,1752739845325,-2209.86,0.00020186,2]
[372679228,1752739845335,-460.0,0.00020186,2]
[372679230,1752739845345,-765.54,0.00020186,2]
[372679232,1752739845354,-765.56,0.00020186,2]
[372679234,1752739845364,-460.0,0.00020186,2]
[372679236,1752739845374,-460.0,0.00020186,2]
[372679238,1752739845383,-460.0,0.00020186,2]
[372679240,1752739845392,-460.0,0.00020186,2]
[372679242,1752739845402,-460.0,0.00020186,2]
[372679244,1752739845412,-460.0,0.00020186,2]
[372679246,1752739845422,-617.34,0.00020186,2]
[372679248,1752739845432,-460.0,0.00020186,2]
[372679250,1752739845443,-460.0,0.00020186,2]
[372679252,1752739845453,-484.08,0.00020186,2]
[372679254,1752739845463,-859.617791,0.00020187,2]
[372679256,1752739845474,-2467.07,0.0002019,2]
[372679258,1752739845485,-614.0,0.0002019,2]
[372679260,1752739845495,-460.0,0.0002019,2]
[372679262,1752739845505,-1119.23,0.0002019,2]
[372679264,1752739845517,-1160.51,0.0002019,2]
[372679266,1752739845527,-559.23,0.0002019,2]
[372679268,1752739845537,-1841.05,0.0002019,2]
[372679271,1752739845547,-460.0,0.0002019,2]
[372679273,1752739845557,-1251.93,0.0002019,2]
[372679275,1752739845567,-500.0,0.0002026,2]
[372679277,1752739845576,-672.0,0.00020274,2]
[372679279,1752739845586,-618.0,0.00020274,2]
[372679281,1752739845595,-198.0,0.00020274,2]
[372679283,1752739845604,-11421.21019069,0.00020279,3]
[372679285,1752739845614,-476.16111942,0.0002028,3]
[372679287,1752739845623,-160.0,0.0002028,3]
[372679289,1752739845633,-151.0,0.00020293,2]
[372679291,1752739845642,-151.0,0.00020299,2]
[372679293,1752739845652,-151.0,0.00020299,2]
[372679295,1752739845662,-151.0,0.00020299,2]
[372679297,1752739845673,-155.906261,0.00020299,2]
[372679299,1752739845684,-151.0,0.00020299,2]
[372679301,1752739845695,-151.0,0.00020299,2]
[372679303,1752739845704,-151.0,0.00020299,2]
[372679305,1752739845714,-151.0,0.00020299,2]
[372679307,1752739845724,-154.370341,0.00020299,2]
[372679309,1752739845735,-408.454844,0.00020299,2]
[372679311,1752739845744,-154.370341,0.00020299,2]
[372679313,1752739845754,-151.0,0.00020299,2]
[372679315,1752739845764,-151.0,0.00020299,2]
[372679317,1752739845774,-151.0,0.00020301,2]
[372679319,1752739845784,-151.0,0.00020301,2]
[372679321,1752739845793,-151.0,0.00020301,2]
[372679323,1752739845803,-151.0,0.00020301,2]
[372679325,1752739845813,-151.0,0.00020315,2]
[372679327,1752739845823,-151.0,0.00020315,2]
[372679329,1752739845833,-207.4,0.00020335,2]
[372679331,1752739845843,-272.14557226,0.00020338,2]
[372679333,1752739845854,-168.0,0.0002034,2]
[372679335,1752739845863,-779.965537,0.00020386,2]
[372679337,1752739845879,-168.0,0.00020395,2]
[372679340,1752739845889,-168.0,0.0002043,2]
[372679342,1752739845899,-168.0,0.0002043,2]
[372679344,1752739845909,-3137.16,0.00020458,2]
[372679346,1752739845919,-2352.6,0.00020458,2]
[372679347,1752739845928,-514.73,0.00020458,2]
[372679350,1752739845940,-1205.92,0.00020458,2]
[372679352,1752739845950,-1584.7,0.00020458,2]
[372679354,1752739845960,-460.0,0.00020458,2]
[372679356,1752739845970,-1328.09,0.00020458,2]
[372679358,1752739845980,-693.06,0.00020458,2]
[372679360,1752739845990,-460.0,0.00020459,2]
[372679361,1752739846001,-460.0,0.00020459,2]
[372679363,1752739846011,-460.0,0.00020459,2]
[372679365,1752739846021,-460.0,0.00020459,2]
[372679368,1752739846031,-460.0,0.00020459,2]
[372679370,1752739846042,-460.0,0.00020459,2]
[372679372,1752739846052,-566.7,0.00020459,2]
[372679374,1752739846062,-460.0,0.0002046,2]
[372679376,1752739846072,-2209.86,0.0002046,2]
[372679378,1752739846082,-460.0,0.0002046,2]
[372679380,1752739846092,-765.54,0.0002046,2]
[372679382,1752739846102,-765.56,0.0002046,2]
[372679384,1752739846112,-460.0,0.0002046,2]
[372679386,1752739846123,-460.0,0.0002046,2]
[372679388,1752739846133,-460.0,0.0002046,2]
[372679390,1752739846143,-460.0,0.0002046,2]
[372679392,1752739846153,-460.0,0.0002046,2]
[372679394,1752739846163,-460.0,0.0002046,2]
[372679396,1752739846173,-617.34,0.0002046,2]
[372679398,1752739846183,-460.0,0.0002046,2]
[372679400,1752739846193,-460.0,0.0002046,2]
[372679402,1752739846204,-484.08,0.0002046,2]
[372679404,1752739846213,-2467.07,0.00020464,2]
[372679406,1752739846223,-614.0,0.00020464,2]
[372679408,1752739846233,-609.85170609,0.00020464,2]
[372679410,1752739846244,-1119.23,0.00020464,2]
[372679412,1752739846255,-1160.51,0.00020464,2]
[372679414,1752739846265,-559.23,0.00020464,2]
[372679417,1752739846275,-1841.05,0.00020464,2]
[372679419,1752739846285,-460.0,0.00020464,2]
[372679421,1752739846295,-1251.93,0.00020464,2]
[372679423,1752739846306,-260.0,0.00020466,2]
[372679425,1752739846316,-1500.0,0.00020468,2]
[372679427,1752739846327,-2000.0,0.00020502,2]
[372679429,1752739846336,-2000.0,0.00020502,2]
[372679431,1752739846348,-1000.0,0.00020521,2]
[372679433,1752739846357,-1000.0,0.00020521,2]
[372679435,1752739846367,-501.97751132,0.00020521,2]
[372679437,1752739846376,-1000.0,0.00020521,2]
[372679439,1752739846386,-1000.0,0.00020521,2]
[372679441,1752739846396,-1000.0,0.00020521,2]
[372679443,1752739846405,-501.55540083,0.00020521,2]
[372679445,1752739846415,-1000.0,0.00020521,2]
[372679447,1752739846425,-1000.0,0.00020521,2]
[372679449,1752739846435,-1000.0,0.00020521,2]
[372679451,1752739846445,-1000.0,0.00020521,2]
[372679452,1752739846454,-1000.0,0.00020521,2]
[372679455,1752739846464,-1000.0,0.00020521,2]
[372679457,1752739846474,-1000.0,0.00020521,2]
[372679459,1752739846484,-1000.0,0.00020521,2]
[372679461,1752739846494,-1001.37630859,0.00020521,2]
[372679463,1752739846504,-1006.43229855,0.00020521,2]
[372679465,1752739846515,-1000.0,0.00020521,2]
[372679467,1752739846525,-1000.0,0.00020521,2]
[372679469,1752739846535,-1000.0,0.00020521,2]
[372679470,1752739846546,-572.93699164,0.00020521,2]
[372679474,1752739846556,-500.0,0.00020521,2]
[372679475,1752739846566,-1000.0,0.00020521,2]
[372679478,1752739846576,-1000.0,0.00020521,2]
[372679480,1752739846586,-1000.0,0.00020521,2]
[372679482,1752739846596,-1000.0,0.00020521,2]
[372679484,1752739846606,-500.0,0.00020521,2]
[372679486,1752739846615,-1000.0,0.00020521,2]
[372679488,1752739846625,-348.63922981,0.00020521,2]
[372679490,1752739846635,-1000.0,0.00020521,2]
[372679492,1752739846644,-283.90530965,0.00020521,2]
[372679494,1752739846654,-1000.0,0.00020521,2]
[372679496,1752739846663,-500.0,0.00020521,2]
[372679498,1752739846673,-838.65287852,0.00020521,2]
[372679500,1752739846683,-1000.0,0.00020521,2]
[372679502,1752739846693,-1000.0,0.00020521,2]
[372679504,1752739846703,-500.0,0.00020521,2]
[372679506,1752739846713,-1000.0,0.00020521,2]
[372679508,1752739846722,-1000.0,0.00020521,2]
[372679510,1752739846732,-503.77600688,0.00020521,2]
[372679512,1752739846742,-1000.0,0.00020521,2]
[372679514,1752739846752,-1000.0,0.00020521,2]
[372679516,1752739846762,-1000.0,0.00020521,2]
[372679518,1752739846772,-1000.0,0.00020521,2]
[372679520,1752739846782,-1000.0,0.00020521,2]
[372679522,1752739846792,-1000.0,0.00020521,2]
[372679524,1752739846801,-501.98100719,0.00020521,2]
[372679526,1752739846811,-501.01117772,0.00020521,2]
[372679528,1752739846821,-1000.0,0.00020521,2]
[372679530,1752739846831,-500.0,0.00020521,2]
[372679532,1752739846840,-500.0,0.00020521,2]
[372679534,1752739846849,-1000.0,0.00020521,2]
[372679536,1752739846859,-672.0,0.00020548,2]
[372679538,1752739846871,-618.0,0.00020548,2]
[372679540,1752739846882,-11421.21019069,0.00020555,3]
[372679542,1752739846892,-168.0,0.00020571,2]
[372679544,1752739846902,-9313.55340328,0.00020581,2]
[372679546,1752739846914,-389.9,0.00020585,3]
[372679548,1752739846924,-168.0,0.00020665,2]
[372679550,1752739846936,-1157.3512308,0.00020719,2]
[372679552,1752739846945,-3137.16,0.00020732,2]
[372679554,1752739846957,-2352.6,0.00020732,2]
[372679556,1752739846967,-514.73,0.00020732,2]
[372679559,1752739846977,-1205.92,0.00020732,2]
[372679560,1752739846986,-1584.7,0.00020732,2]
[372679563,1752739846998,-339.62881486,0.00020732,2]
[372679565,1752739847008,-1328.09,0.00020732,2]
[372679567,1752739847017,-693.06,0.00020732,2]
[372679569,1752739847027,-460.0,0.00020733,2]
[372679571,1752739847036,-460.0,0.00020733,2]
[372679573,1752739847046,-460.0,0.00020733,2]
[372679575,1752739847055,-460.0,0.00020733,2]
[372679577,1752739847065,-460.0,0.00020733,2]
[372679579,1752739847074,-460.0,0.00020733,2]
[372679581,1752739847084,-566.7,0.00020733,2]
[372679583,1752739847094,-460.0,0.00020734,2]
[372679585,1752739847104,-152.032092,0.00020734,2]
[372679587,1752739847114,-151.0,0.00020734,2]
[372679589,1752739847123,-561.796941,0.00020734,2]
[372679591,1752739847133,-214.53515237,0.00020734,2]
[372679608,1752739847285,-347.26178863,0.00020734,2]
[372679610,1752739847295,-134.41147661,0.00020734,2]
[372679630,1752739847602,460.0,0.00017994,2]
[372679631,1752739847793,-262.83040892,0.00018264,2]
[372679632,1752739847802,-175.0,0.00018805,3]
[372679633,1752739847812,-4870.41934108,0.0002028,3]
[372679634,1752739847995,460.0,0.00017992,2]
[372679635,1752739848223,-460.0,0.00018266,2]
[372679636,1752739848232,-166.01,0.0001854,2]
[372679637,1752739848241,-350.0,0.00020175,3]
[372679638,1752739848252,-963.44787522,0.0002028,3]
[372679639,1752739848501,300.0,7.4e-07,120]
[372679640,1752739848523,-574.87950931,0.0002028,3]
[372679879,1752739851183,460.0,0.00017992,2]
[372679889,1752739851273,500.0,0.00017999,2]
[372679900,1752739851361,460.0,0.00017995,2]
[372679909,1752739851440,329.04574394,0.00017998,2]
[372679925,1752739851582,460.0,0.00017994,2]
[372679934,1752739851655,460.0,0.00017993,2]
[372679964,1752739851936,460.0,0.00017994,2]
[372680097,1752739853231,300.0,7.4e-07,120]
[372680203,1752739854283,1630.97,0.00017994,2]
[372680293,1752739855175,460.0,0.00017997,2]
[372680348,1752739855852,460.0,0.00017994,2]
[372680410,1752739856464,1494.4432278,0.00017998,2]
[372680418,1752739856537,202.8367722,0.00017998,2]
[372680488,1752739857242,460.0,0.00017993,2]
[372680565,1752739858332,460.0,0.00017992,2]
[372680600,1752739858705,460.0,0.00017993,2]
[372680614,1752739858846,460.0,0.00017994,2]
[372680848,1752739861453,476.40030117,0.00017992,2]
[372681002,1752739862982,300.0,7.4e-07,120]
[372681033,1752739863304,527.74,0.00017992,2]
[372681088,1752739863849,460.0,0.00017992,2]
[372681139,1752739864358,460.0,0.00017994,2]
[372681298,1752739866250,460.0,0.00017992,2]